[Event "*** Titled Tuesday Blitz"]
[Site "Chess.com"]
[Date "2018.11.06"]
[Round "2"]
[White "playablecharacter"]
[Black "armago"]
[Result "1-0"]
[WhiteElo "2059"]
[BlackElo "2045"]
[TimeControl "180+2"]
[EndTime "13:20:35 PST"]
[Termination "playablecharacter won by resignation"]

1. d4 {[%clk 0:03:01.9]} 1... Nf6 {[%clk 0:02:59.6]} 2. c4 {[%clk 0:03:00.7]}
2... g6 {[%clk 0:03:00.7]} 3. Nc3 {[%clk 0:03:00.6]} 3... d5 {[%clk 0:03:01.1]}
4. cxd5 {[%clk 0:02:59.5]} 4... Nxd5 {[%clk 0:03:00.9]} 5. Bd2 {[%clk
0:02:58.9]} 5... Bg7 {[%clk 0:03:00.4]} 6. e3 {[%clk 0:02:57.9]} 6... O-O {[%clk
0:02:58.9]} 7. Nf3 {[%clk 0:02:53.6]} 7... c5 {[%clk 0:02:57.8]} 8. Nxd5 {[%clk
0:02:41.5]} 8... Qxd5 {[%clk 0:02:56.6]} 9. Bc3 {[%clk 0:02:33.8]} 9... Nc6
{[%clk 0:02:55.8]} 10. Bb5 {[%clk 0:02:24.4]} 10... cxd4 {[%clk 0:02:53.8]} 11.
Bxc6 {[%clk 0:02:24.4]} 11... bxc6 {[%clk 0:02:17.3]} 12. Bxd4 {[%clk
0:02:21.1]} 12... Bxd4 {[%clk 0:02:08.1]} 13. Qxd4 {[%clk 0:02:19.2]} 13... Qb5
{[%clk 0:02:08.2]} 14. a4 {[%clk 0:02:08.3]} 14... Qa6 {[%clk 0:01:45.5]} 15.
Ne5 {[%clk 0:01:34.4]} 15... Be6 {[%clk 0:01:41.3]} 16. f4 {[%clk 0:01:19.9]}
16... Rfd8 {[%clk 0:01:40.5]} 17. Qc5 {[%clk 0:01:12.2]} 17... Bd5 {[%clk
0:01:32.5]} 18. Kf2 {[%clk 0:01:08.8]} 18... Rab8 {[%clk 0:01:31.4]} 19. b4
{[%clk 0:01:05.1]} 19... f6 {[%clk 0:01:23.6]} 20. Nf3 {[%clk 0:00:49.7]} 20...
Bxf3 {[%clk 0:01:20.3]} 21. Kxf3 {[%clk 0:00:50.3]} 21... Qd3 {[%clk 0:01:05.5]}
22. Rhd1 {[%clk 0:00:51.4]} 22... Qxd1+ {[%clk 0:00:51.9]} 23. Rxd1 {[%clk
0:00:53.3]} 23... Rxd1 {[%clk 0:00:53.8]} 24. Qxe7 {[%clk 0:00:50.5]} 24... Rbd8
{[%clk 0:00:44.4]} 25. Qxf6 {[%clk 0:00:48.1]} 25... R8d6 {[%clk 0:00:36]} 26.
Qe7 {[%clk 0:00:48]} 26... a6 {[%clk 0:00:35]} 27. Qb7 {[%clk 0:00:42.5]} 27...
h5 {[%clk 0:00:31.6]} 28. Qxa6 {[%clk 0:00:39.8]} 28... Kf7 {[%clk 0:00:31.9]}
29. Qc4+ {[%clk 0:00:34.8]} 29... Kf6 {[%clk 0:00:32.3]} 30. a5 {[%clk
0:00:33.5]} 30... Ra1 {[%clk 0:00:08.8]} 31. Qc3+ {[%clk 0:00:31.1]} 1-0

[Event "*** Titled Tuesday Blitz"]
[Site "Chess.com"]
[Date "2018.11.06"]
[Round "2"]
[White "ShadowJolteon"]
[Black "olksuna"]
[Result "0-1"]
[WhiteElo "2368"]
[BlackElo "2499"]
[TimeControl "180+2"]
[EndTime "13:20:37 PST"]
[Termination "olksuna won by checkmate"]

1. d4 {[%clk 0:02:54]} 1... d5 {[%clk 0:02:58.3]} 2. c4 {[%clk 0:02:54.4]} 2...
e6 {[%clk 0:02:58.6]} 3. Nf3 {[%clk 0:02:55.1]} 3... c6 {[%clk 0:02:59.3]} 4. g3
{[%clk 0:02:55.1]} 4... f5 {[%clk 0:02:52.5]} 5. Bg2 {[%clk 0:02:51.3]} 5... Nf6
{[%clk 0:02:52.6]} 6. O-O {[%clk 0:02:49.4]} 6... Bd6 {[%clk 0:02:53.3]} 7. b3
{[%clk 0:02:50.2]} 7... Qe7 {[%clk 0:02:53.9]} 8. Bb2 {[%clk 0:02:51.1]} 8...
O-O {[%clk 0:02:53.3]} 9. Ne5 {[%clk 0:02:51.1]} 9... b6 {[%clk 0:02:50.3]} 10.
Nc3 {[%clk 0:02:49.9]} 10... Bb7 {[%clk 0:02:47.2]} 11. Rc1 {[%clk 0:02:50.5]}
11... Nbd7 {[%clk 0:02:42.9]} 12. f4 {[%clk 0:02:24.8]} 12... Rac8 {[%clk
0:02:39.9]} 13. cxd5 {[%clk 0:02:25.5]} 13... exd5 {[%clk 0:02:38.8]} 14. e3
{[%clk 0:02:25]} 14... Ne4 {[%clk 0:02:31.7]} 15. Nxe4 {[%clk 0:02:25]} 15...
fxe4 {[%clk 0:02:15.1]} 16. Qg4 {[%clk 0:02:23.3]} 16... Nf6 {[%clk 0:02:10.7]}
17. Qe2 {[%clk 0:02:12.9]} 17... c5 {[%clk 0:02:06.2]} 18. Rfd1 {[%clk
0:02:07.6]} 18... Qe6 {[%clk 0:01:55.2]} 19. a3 {[%clk 0:01:48.9]} 19... c4
{[%clk 0:01:48.7]} 20. bxc4 {[%clk 0:01:35.7]} 20... dxc4 {[%clk 0:01:48.4]} 21.
Nxc4 {[%clk 0:01:04.2]} 21... Ba6 {[%clk 0:01:48.4]} 22. Bf1 {[%clk 0:01:05.4]}
22... Nd5 {[%clk 0:01:44.5]} 23. Qd2 {[%clk 0:00:50]} 23... Bxc4 {[%clk
0:01:14.7]} 24. Bxc4 {[%clk 0:00:51.9]} 24... Rxc4 {[%clk 0:01:15.7]} 25. Rxc4
{[%clk 0:00:46.2]} 25... Nxf4 {[%clk 0:01:16.3]} 26. d5 {[%clk 0:00:07.2]} 26...
Nh3+ {[%clk 0:01:15.2]} 27. Kg2 {[%clk 0:00:08.8]} 27... Qg4 {[%clk 0:01:10.7]}
28. Rf1 {[%clk 0:00:06.8]} 28... Rf3 {[%clk 0:00:57]} 29. Rcc1 {[%clk
0:00:06.2]} 29... h5 {[%clk 0:00:33.1]} 30. Qc3 {[%clk 0:00:07.4]} 30... Rxg3+
{[%clk 0:00:29.1]} 31. hxg3 {[%clk 0:00:08.2]} 31... Qxg3+ {[%clk 0:00:29.8]}
32. Kh1 {[%clk 0:00:09.5]} 32... Qh2# {[%clk 0:00:30.3]} 0-1

[Event "*** Titled Tuesday Blitz"]
[Site "Chess.com"]
[Date "2018.11.06"]
[Round "2"]
[White "RegZryt"]
[Black "Angry_Twin"]
[Result "1-0"]
[WhiteElo "2496"]
[BlackElo "2763"]
[TimeControl "180+2"]
[EndTime "13:20:38 PST"]
[Termination "RegZryt won by resignation"]

1. d4 {[%clk 0:03:01.9]} 1... Nf6 {[%clk 0:02:58.7]} 2. c4 {[%clk 0:03:02.7]}
2... g6 {[%clk 0:03:00.1]} 3. Nc3 {[%clk 0:03:03.8]} 3... d5 {[%clk 0:03:01.3]}
4. Nf3 {[%clk 0:03:04.3]} 4... Bg7 {[%clk 0:03:03.1]} 5. h4 {[%clk 0:03:05.2]}
5... c6 {[%clk 0:03:03.8]} 6. Bg5 {[%clk 0:03:04.7]} 6... O-O {[%clk 0:03:04.5]}
7. Bxf6 {[%clk 0:03:01.4]} 7... Bxf6 {[%clk 0:03:05.7]} 8. h5 {[%clk 0:03:03.3]}
8... g5 {[%clk 0:03:07.2]} 9. h6 {[%clk 0:03:03.6]} 9... Bf5 {[%clk 0:03:07.7]}
10. Qd2 {[%clk 0:03:00.3]} 10... e6 {[%clk 0:03:08.6]} 11. e3 {[%clk 0:03:01.6]}
11... Bg6 {[%clk 0:03:03.9]} 12. Bd3 {[%clk 0:02:52.8]} 12... Nd7 {[%clk
0:03:04.5]} 13. e4 {[%clk 0:02:50.3]} 13... dxc4 {[%clk 0:03:03.1]} 14. Bxc4
{[%clk 0:02:49.6]} 14... e5 {[%clk 0:03:04.5]} 15. dxe5 {[%clk 0:02:35.7]} 15...
Nxe5 {[%clk 0:03:05.5]} 16. Nxe5 {[%clk 0:02:35.8]} 16... Qxd2+ {[%clk
0:03:05.4]} 17. Kxd2 {[%clk 0:02:36.8]} 17... Bxe5 {[%clk 0:03:06.9]} 18. f3
{[%clk 0:02:35.3]} 18... b5 {[%clk 0:03:05.2]} 19. Bb3 {[%clk 0:02:33.8]} 19...
a5 {[%clk 0:03:06.1]} 20. a3 {[%clk 0:02:24.7]} 20... Rfd8+ {[%clk 0:03:03.2]}
21. Kc2 {[%clk 0:02:24]} 21... Kf8 {[%clk 0:03:03.6]} 22. Rad1 {[%clk 0:02:23]}
22... f5 {[%clk 0:03:04.4]} 23. Be6 {[%clk 0:02:17.6]} 23... f4 {[%clk 0:02:41]}
24. Rxd8+ {[%clk 0:02:10.5]} 24... Rxd8 {[%clk 0:02:41.7]} 25. Rd1 {[%clk
0:02:12.2]} 25... Rxd1 {[%clk 0:02:40.4]} 26. Nxd1 {[%clk 0:02:14.1]} 26... Ke7
{[%clk 0:02:41]} 27. Bc8 {[%clk 0:02:11.5]} 27... Kd8 {[%clk 0:02:40.5]} 28. Be6
{[%clk 0:02:11.7]} 28... Bd6 {[%clk 0:02:41.1]} 29. Nf2 {[%clk 0:02:09]} 29...
Ke7 {[%clk 0:02:29.3]} 30. Bc8 {[%clk 0:02:08.5]} 30... Bf7 {[%clk 0:02:16.4]}
31. Bf5 {[%clk 0:02:00.4]} 31... Bc4 {[%clk 0:01:51.1]} 32. Nd3 {[%clk
0:01:44.8]} 32... Kf6 {[%clk 0:01:20]} 33. Bxh7 {[%clk 0:01:43.4]} 33... Bf8
{[%clk 0:01:21]} 34. e5+ {[%clk 0:01:37.3]} 34... Ke6 {[%clk 0:01:18.1]} 35.
Bg8+ {[%clk 0:01:37.5]} 35... Kf5 {[%clk 0:01:07.1]} 36. h7 {[%clk 0:01:08.1]}
36... Bg7 {[%clk 0:01:07.3]} 37. Bxc4 {[%clk 0:01:07.6]} 37... bxc4 {[%clk
0:01:08.4]} 38. Nc5 {[%clk 0:01:08.9]} 38... Kxe5 {[%clk 0:01:07.4]} 39. Nb7
{[%clk 0:01:08.8]} 39... Kd4 {[%clk 0:00:56.4]} 40. Nxa5 {[%clk 0:01:09.3]}
40... Ke3 {[%clk 0:00:57.5]} 41. Nxc4+ {[%clk 0:01:06.8]} 41... Kf2 {[%clk
0:00:58.8]} 42. a4 {[%clk 0:01:06.3]} 42... Kxg2 {[%clk 0:00:58.5]} 43. Nd2
{[%clk 0:01:07.9]} 1-0

[Event "*** Titled Tuesday Blitz"]
[Site "Chess.com"]
[Date "2018.11.06"]
[Round "2"]
[White "ChessicallyInclined"]
[Black "Bauxi435"]
[Result "0-1"]
[WhiteElo "2401"]
[BlackElo "2432"]
[TimeControl "180+2"]
[EndTime "13:20:46 PST"]
[Termination "Bauxi435 won by resignation"]

1. d4 {[%clk 0:03:01.9]} 1... Nf6 {[%clk 0:02:58]} 2. c4 {[%clk 0:03:00.4]} 2...
e6 {[%clk 0:02:58]} 3. Nc3 {[%clk 0:03:01.4]} 3... d5 {[%clk 0:02:57.3]} 4. cxd5
{[%clk 0:02:43.3]} 4... Nxd5 {[%clk 0:02:59.2]} 5. e4 {[%clk 0:02:43.9]} 5...
Nxc3 {[%clk 0:02:58.5]} 6. bxc3 {[%clk 0:02:45.8]} 6... c5 {[%clk 0:02:57.9]} 7.
a3 {[%clk 0:02:46.9]} 7... cxd4 {[%clk 0:02:57.8]} 8. cxd4 {[%clk 0:02:48.8]}
8... e5 {[%clk 0:02:59.4]} 9. Nf3 {[%clk 0:02:40.6]} 9... exd4 {[%clk
0:02:50.9]} 10. Qxd4 {[%clk 0:02:30.2]} 10... Qxd4 {[%clk 0:02:47.8]} 11. Nxd4
{[%clk 0:02:32.1]} 11... Bc5 {[%clk 0:02:43.3]} 12. Nb5 {[%clk 0:02:30.3]} 12...
Na6 {[%clk 0:02:41.9]} 13. Bb2 {[%clk 0:02:26.4]} 13... O-O {[%clk 0:02:37.2]}
14. Bc4 {[%clk 0:02:21.9]} 14... Bd7 {[%clk 0:02:22.8]} 15. O-O {[%clk
0:02:13.9]} 15... Rac8 {[%clk 0:02:21.7]} 16. Rac1 {[%clk 0:02:09.6]} 16... Bxb5
{[%clk 0:02:10.7]} 17. Bxb5 {[%clk 0:02:11.5]} 17... Bb6 {[%clk 0:02:12.3]} 18.
Bxa6 {[%clk 0:01:53.5]} 18... bxa6 {[%clk 0:02:12.4]} 19. g3 {[%clk 0:01:52.6]}
19... f6 {[%clk 0:02:07.1]} 20. Kg2 {[%clk 0:01:52]} 20... Rb8 {[%clk
0:02:03.8]} 21. f4 {[%clk 0:01:16.4]} 21... Kf7 {[%clk 0:01:58.1]} 22. Rfd1
{[%clk 0:01:05]} 22... Rfd8 {[%clk 0:01:55.6]} 23. Kf3 {[%clk 0:00:53.9]} 23...
Rxd1 {[%clk 0:01:50.4]} 24. Rxd1 {[%clk 0:00:54.7]} 24... Ke7 {[%clk 0:01:47]}
25. Rd5 {[%clk 0:00:40.4]} 25... Bg1 {[%clk 0:01:40.4]} 26. Bc3 {[%clk
0:00:35.1]} 26... Rb3 {[%clk 0:01:38.2]} 27. Rd3 {[%clk 0:00:31.4]} 27... Ke8
{[%clk 0:01:34.1]} 28. Ke2 {[%clk 0:00:12.6]} 28... Rxa3 {[%clk 0:01:31.6]} 29.
Be1 {[%clk 0:00:09.5]} 29... Ra2+ {[%clk 0:01:28.2]} 30. Kf3 {[%clk 0:00:10.6]}
30... Rxh2 {[%clk 0:01:24.2]} 31. Ra3 {[%clk 0:00:10.6]} 31... Bb6 {[%clk
0:01:24.9]} 32. Rxa6 {[%clk 0:00:11.2]} 32... Rb2 {[%clk 0:01:22.9]} 33. Kg4
{[%clk 0:00:09.2]} 33... Kd7 {[%clk 0:01:20.5]} 34. Ra1 {[%clk 0:00:09.8]} 34...
Kc6 {[%clk 0:01:19.7]} 35. Kf5 {[%clk 0:00:09.3]} 35... Re2 {[%clk 0:01:17]} 36.
Bb4 {[%clk 0:00:08.5]} 36... Kb5 {[%clk 0:01:16.4]} 37. Bf8 {[%clk 0:00:09.3]}
37... g6+ {[%clk 0:01:16.8]} 38. Kxf6 {[%clk 0:00:10.5]} 38... Rxe4 {[%clk
0:01:18.4]} 39. Kg7 {[%clk 0:00:09.3]} 39... Bd4+ {[%clk 0:01:19.2]} 40. Kxh7
{[%clk 0:00:09]} 40... Bxa1 {[%clk 0:01:20.8]} 41. Kxg6 {[%clk 0:00:10.6]} 41...
Re3 {[%clk 0:01:21.3]} 42. g4 {[%clk 0:00:11.7]} 42... Re8 {[%clk 0:01:19.4]}
43. Kf7 {[%clk 0:00:12.5]} 43... Re4 {[%clk 0:01:19.5]} 44. Bd6 {[%clk
0:00:10.5]} 44... Kc6 {[%clk 0:01:20.9]} 45. Bb8 {[%clk 0:00:11.5]} 45... a5
{[%clk 0:01:21.9]} 46. g5 {[%clk 0:00:12.1]} 46... a4 {[%clk 0:01:23.4]} 47. g6
{[%clk 0:00:13.4]} 47... a3 {[%clk 0:01:24.8]} 48. g7 {[%clk 0:00:14.8]} 48...
Bxg7 {[%clk 0:01:25.4]} 49. Kxg7 {[%clk 0:00:16.7]} 49... a2 {[%clk 0:01:26.7]}
50. Be5 {[%clk 0:00:17.6]} 50... Rxe5 {[%clk 0:01:28.2]} 51. fxe5 {[%clk
0:00:18.9]} 51... a1=Q {[%clk 0:01:29.6]} 0-1

[Event "*** Titled Tuesday Blitz"]
[Site "Chess.com"]
[Date "2018.11.06"]
[Round "2"]
[White "Alopekos"]
[Black "WorldChampionBulletChess"]
[Result "1-0"]
[WhiteElo "2476"]
[BlackElo "2290"]
[TimeControl "180+2"]
[EndTime "13:20:47 PST"]
[Termination "Alopekos won by checkmate"]

1. e4 {[%clk 0:03:01.9]} 1... d5 {[%clk 0:03:00.4]} 2. exd5 {[%clk 0:03:02.4]}
2... Qxd5 {[%clk 0:03:02.3]} 3. Nc3 {[%clk 0:03:02.6]} 3... Qd8 {[%clk
0:03:04.2]} 4. d4 {[%clk 0:03:01.5]} 4... Nf6 {[%clk 0:03:06.1]} 5. Bc4 {[%clk
0:03:01.9]} 5... e6 {[%clk 0:03:07.6]} 6. Nf3 {[%clk 0:03:03]} 6... Bd6 {[%clk
0:03:07]} 7. O-O {[%clk 0:02:53.6]} 7... h6 {[%clk 0:03:08]} 8. Re1 {[%clk
0:02:51.2]} 8... O-O {[%clk 0:03:08.6]} 9. Nb5 {[%clk 0:02:46.3]} 9... Be7
{[%clk 0:03:04.3]} 10. Bf4 {[%clk 0:02:44.7]} 10... Na6 {[%clk 0:03:01.2]} 11.
Ne5 {[%clk 0:02:30.5]} 11... c6 {[%clk 0:02:56]} 12. Nc3 {[%clk 0:02:30.8]}
12... Nc7 {[%clk 0:02:56.7]} 13. Qf3 {[%clk 0:02:15.4]} 13... Ncd5 {[%clk
0:02:40.8]} 14. Bg3 {[%clk 0:02:02.7]} 14... Nxc3 {[%clk 0:01:58.5]} 15. bxc3
{[%clk 0:02:02.5]} 15... Nd5 {[%clk 0:01:58.5]} 16. a4 {[%clk 0:01:53.3]} 16...
Bf6 {[%clk 0:01:38]} 17. a5 {[%clk 0:01:43.7]} 17... Bd7 {[%clk 0:01:16.9]} 18.
Reb1 {[%clk 0:01:40.9]} 18... b6 {[%clk 0:01:15.3]} 19. axb6 {[%clk 0:01:14.4]}
19... Nxb6 {[%clk 0:01:17.2]} 20. Bd3 {[%clk 0:00:32.5]} 20... Bxe5 {[%clk
0:00:44.3]} 21. Bxe5 {[%clk 0:00:34.4]} 21... f6 {[%clk 0:00:45.2]} 22. Bd6
{[%clk 0:00:24.2]} 22... Re8 {[%clk 0:00:45.4]} 23. c4 {[%clk 0:00:21.5]} 23...
e5 {[%clk 0:00:25.2]} 24. dxe5 {[%clk 0:00:17.7]} 24... fxe5 {[%clk 0:00:27.1]}
25. Qe4 {[%clk 0:00:19]} 25... Re6 {[%clk 0:00:22.8]} 26. Qh7+ {[%clk
0:00:18.6]} 26... Kf7 {[%clk 0:00:24.1]} 27. c5 {[%clk 0:00:19.6]} 27... Nd5
{[%clk 0:00:25]} 28. Rb7 {[%clk 0:00:10.4]} 28... a5 {[%clk 0:00:19.4]} 29. Qf5+
{[%clk 0:00:09.2]} 29... Kg8 {[%clk 0:00:19.6]} 30. Qh7+ {[%clk 0:00:08.8]}
30... Kf7 {[%clk 0:00:20.4]} 31. Bf5 {[%clk 0:00:09.5]} 31... Nf6 {[%clk
0:00:18.3]} 32. Qg6+ {[%clk 0:00:10.3]} 32... Kg8 {[%clk 0:00:18.9]} 33. Bxe6+
{[%clk 0:00:11]} 33... Bxe6 {[%clk 0:00:20.8]} 34. Qxg7# {[%clk 0:00:12.4]} 1-0

[Event "*** Titled Tuesday Blitz"]
[Site "Chess.com"]
[Date "2018.11.06"]
[Round "2"]
[White "twitchTriniCupid"]
[Black "aRk_iN"]
[Result "1-0"]
[WhiteElo "2254"]
[BlackElo "2107"]
[TimeControl "180+2"]
[EndTime "13:20:57 PST"]
[Termination "twitchTriniCupid won by resignation"]

1. d4 {[%clk 0:03:01.9]} 1... d5 {[%clk 0:03:00.6]} 2. c4 {[%clk 0:02:59]} 2...
c6 {[%clk 0:03:01.6]} 3. cxd5 {[%clk 0:02:58.2]} 3... cxd5 {[%clk 0:03:01.6]} 4.
Nc3 {[%clk 0:02:59.3]} 4... Nf6 {[%clk 0:03:01.3]} 5. Bf4 {[%clk 0:02:59.3]}
5... a6 {[%clk 0:02:56.6]} 6. Rc1 {[%clk 0:02:58.5]} 6... Nc6 {[%clk 0:02:57.4]}
7. e3 {[%clk 0:02:49.7]} 7... Bf5 {[%clk 0:02:57.6]} 8. Nf3 {[%clk 0:02:40.5]}
8... e6 {[%clk 0:02:45.9]} 9. Be2 {[%clk 0:02:23.6]} 9... Be7 {[%clk 0:02:34.3]}
10. O-O {[%clk 0:02:02.4]} 10... O-O {[%clk 0:02:31.5]} 11. Nh4 {[%clk 0:02:03]}
11... Be4 {[%clk 0:01:59]} 12. f3 {[%clk 0:01:54.6]} 12... Bg6 {[%clk
0:01:48.8]} 13. g4 {[%clk 0:01:35.3]} 13... Nd7 {[%clk 0:01:26]} 14. Nxg6 {[%clk
0:01:23.5]} 14... hxg6 {[%clk 0:01:05.3]} 15. Qd2 {[%clk 0:01:22.1]} 15... Rc8
{[%clk 0:00:58.8]} 16. e4 {[%clk 0:00:55.9]} 16... Nxd4 {[%clk 0:00:52.4]} 17.
Bd1 {[%clk 0:00:52.7]} 17... e5 {[%clk 0:00:45.8]} 18. Be3 {[%clk 0:00:31.8]}
18... dxe4 {[%clk 0:00:42.8]} 19. Nxe4 {[%clk 0:00:25.4]} 19... Rxc1 {[%clk
0:00:37.4]} 20. Qxc1 {[%clk 0:00:27.3]} 20... f5 {[%clk 0:00:29.8]} 21. Nf2
{[%clk 0:00:18.3]} 21... Qc8 {[%clk 0:00:20.7]} 22. Qd2 {[%clk 0:00:18.6]} 22...
Bc5 {[%clk 0:00:18.6]} 23. b4 {[%clk 0:00:18.8]} 23... Bb6 {[%clk 0:00:19.2]}
24. Nd3 {[%clk 0:00:17.5]} 24... Qc6 {[%clk 0:00:19.4]} 25. gxf5 {[%clk
0:00:16.8]} 25... gxf5 {[%clk 0:00:20.1]} 26. f4 {[%clk 0:00:17.5]} 26... e4
{[%clk 0:00:19.2]} 27. Ne5 {[%clk 0:00:16.2]} 27... Nxe5 {[%clk 0:00:20.1]} 28.
fxe5 {[%clk 0:00:18.1]} 28... Ne6 {[%clk 0:00:19.3]} 29. Bb3 {[%clk 0:00:18.1]}
29... Bxe3+ {[%clk 0:00:19]} 30. Qxe3 {[%clk 0:00:20]} 30... g6 {[%clk
0:00:17.8]} 31. Rc1 {[%clk 0:00:20.9]} 31... Qd7 {[%clk 0:00:17.4]} 32. Rd1
{[%clk 0:00:21.9]} 32... Qc6 {[%clk 0:00:18.1]} 33. Rd6 {[%clk 0:00:22.8]} 33...
f4 {[%clk 0:00:12.2]} 34. Bxe6+ {[%clk 0:00:23]} 34... Kg7 {[%clk 0:00:11.5]}
35. Rxc6 {[%clk 0:00:21.4]} 35... fxe3 {[%clk 0:00:12.7]} 36. Rc2 {[%clk
0:00:18.7]} 1-0

[Event "*** Titled Tuesday Blitz"]
[Site "Chess.com"]
[Date "2018.11.06"]
[Round "2"]
[White "jcibarra"]
[Black "Alexander_Donchenko"]
[Result "0-1"]
[WhiteElo "2630"]
[BlackElo "2746"]
[TimeControl "180+2"]
[EndTime "13:20:58 PST"]
[Termination "Alexander_Donchenko won by checkmate"]

1. Nf3 {[%clk 0:03:01.9]} 1... Nf6 {[%clk 0:03:00.7]} 2. g3 {[%clk 0:03:02.1]}
2... b6 {[%clk 0:03:01.8]} 3. Bg2 {[%clk 0:03:02.5]} 3... Bb7 {[%clk 0:03:03.1]}
4. c4 {[%clk 0:03:04]} 4... g6 {[%clk 0:03:04.5]} 5. O-O {[%clk 0:03:04.9]} 5...
Bg7 {[%clk 0:03:05.9]} 6. Nc3 {[%clk 0:03:02.8]} 6... O-O {[%clk 0:03:06.3]} 7.
Re1 {[%clk 0:03:03.9]} 7... Ne4 {[%clk 0:03:06.9]} 8. Nxe4 {[%clk 0:02:59.9]}
8... Bxe4 {[%clk 0:03:08.8]} 9. d3 {[%clk 0:03:00.2]} 9... Bb7 {[%clk
0:03:09.9]} 10. e4 {[%clk 0:03:00.8]} 10... c5 {[%clk 0:03:11.1]} 11. d4 {[%clk
0:03:00.2]} 11... cxd4 {[%clk 0:03:11.3]} 12. Nxd4 {[%clk 0:03:02.1]} 12... Nc6
{[%clk 0:03:12]} 13. Be3 {[%clk 0:02:58.6]} 13... Rc8 {[%clk 0:03:11.9]} 14. Rc1
{[%clk 0:02:58.6]} 14... d6 {[%clk 0:03:09.1]} 15. Qd2 {[%clk 0:02:55.4]} 15...
Qd7 {[%clk 0:03:02.8]} 16. Nb5 {[%clk 0:02:54.8]} 16... Ba8 {[%clk 0:02:50.7]}
17. b3 {[%clk 0:02:54.4]} 17... Rfd8 {[%clk 0:02:47.9]} 18. Red1 {[%clk
0:02:45.4]} 18... Ne5 {[%clk 0:02:32.1]} 19. h3 {[%clk 0:02:38.5]} 19... Qb7
{[%clk 0:02:10.7]} 20. f4 {[%clk 0:02:32.2]} 20... Nd7 {[%clk 0:02:06.4]} 21.
Kh2 {[%clk 0:02:20.3]} 21... Nc5 {[%clk 0:01:52]} 22. Nc3 {[%clk 0:01:57.4]}
22... Bxc3 {[%clk 0:01:46.3]} 23. Qxc3 {[%clk 0:01:59.3]} 23... Nxe4 {[%clk
0:01:47.4]} 24. Qd4 {[%clk 0:01:55]} 24... f5 {[%clk 0:01:39]} 25. Rc2 {[%clk
0:01:43.1]} 25... Qd7 {[%clk 0:01:36.8]} 26. Bxe4 {[%clk 0:01:26]} 26... Bxe4
{[%clk 0:01:35.7]} 27. Rf2 {[%clk 0:01:26.5]} 27... b5 {[%clk 0:01:30.9]} 28.
Bc1 {[%clk 0:01:21.3]} 28... Rc7 {[%clk 0:00:54.3]} 29. Rfd2 {[%clk 0:01:10.6]}
29... Kf7 {[%clk 0:00:35]} 30. Bb2 {[%clk 0:01:09.6]} 30... Rg8 {[%clk
0:00:36.1]} 31. c5 {[%clk 0:01:08.5]} 31... d5 {[%clk 0:00:26.6]} 32. b4 {[%clk
0:01:05.8]} 32... Qe6 {[%clk 0:00:26.5]} 33. Re1 {[%clk 0:01:02.1]} 33... Rcc8
{[%clk 0:00:24.8]} 34. a4 {[%clk 0:00:54.4]} 34... a6 {[%clk 0:00:25]} 35. axb5
{[%clk 0:00:54.9]} 35... axb5 {[%clk 0:00:26.9]} 36. Ra1 {[%clk 0:00:56]} 36...
g5 {[%clk 0:00:26.4]} 37. Rf2 {[%clk 0:00:45.5]} 37... Qh6 {[%clk 0:00:23.6]}
38. Ra7 {[%clk 0:00:40.1]} 38... Rc6 {[%clk 0:00:23.3]} 39. Bc1 {[%clk
0:00:28.3]} 39... Qxh3+ {[%clk 0:00:23.6]} 40. Kxh3 {[%clk 0:00:26.8]} 40...
Rh6# {[%clk 0:00:24.6]} 0-1